fUST/lending_fUST_20250809
["ID","MTS","AMOUNT","RATE_DAILY","PERIOD"]
[378120611,1754739054418,-214.12247853,0.00024795,14]
[378120613,1754739054427,-12478.79198413,0.00024798,7]
[378120615,1754739054443,-813.42,0.00023561,2]
[378120617,1754739054452,-21473.41356727,0.00024798,7]
[378120619,1754739054462,-151.0,0.00024798,7]
[378120621,1754739054471,-151.0,0.000248,7]
[378120623,1754739054480,-151.0,0.000248,7]
[378120625,1754739054489,-151.0,0.000248,7]
[378120627,1754739054498,-151.0,0.000248,7]
[378120629,1754739054508,-156.42347,0.000248,7]
[378120631,1754739054517,-151.0,0.000248,7]
[378120633,1754739054526,-267.970233,0.000248,7]
[378120635,1754739054535,-204.633955,0.000248,7]
[378120637,1754739054545,-151.0,0.000248,7]
[378120639,1754739054554,-151.0,0.000248,7]
[378120641,1754739054564,-151.0,0.000248,7]
[378120643,1754739054574,-166.367552,0.000248,7]
[378120645,1754739054583,-151.0,0.000248,7]
[378120647,1754739054593,-151.0,0.000248,7]
[378120649,1754739054602,-151.0,0.000248,7]
[378120651,1754739054611,-151.0,0.000248,7]
[378120653,1754739054621,-151.0,0.000248,7]
[378120655,1754739054631,-151.0,0.000248,7]
[378120657,1754739054640,-151.0,0.000248,7]
[378120659,1754739054651,-305.011491,0.000248,7]
[378120661,1754739054662,-305.011491,0.000248,7]
[378120663,1754739054672,-151.0,0.000248,7]
[378120665,1754739054681,-207.696716,0.000248,7]
[378120667,1754739054690,-207.696716,0.000248,7]
[378120669,1754739054699,-276.260681,0.000248,7]
[378120671,1754739054709,-276.260681,0.000248,7]
[378120673,1754739054718,-197.893291,0.000248,7]
[378120675,1754739054727,-151.0,0.000248,7]
[378120677,1754739054737,-152.983984,0.000248,7]
[378120679,1754739054746,-156.446989,0.000248,7]
[378120681,1754739054755,-156.446989,0.000248,7]
[378120683,1754739054764,-216.660757,0.000248,7]
[378120685,1754739054773,-216.660757,0.000248,7]
[378120687,1754739054782,-151.0,0.000248,7]
[378120689,1754739054792,-312.16666667,0.000248,7]
[378120691,1754739054801,-461.55179734,0.000248,7]
[378120693,1754739054810,-560.42652259,0.000248,2]
[378120695,1754739054820,-160.0,0.000248,7]
[378120697,1754739054829,-160.0,0.0002481,3]
[378120699,1754739054838,-151.0,0.00024821,7]
[378120701,1754739054848,-209.174821,0.00024821,7]
[378120703,1754739054857,-209.174821,0.00024821,7]
[378120705,1754739054866,-432.795285,0.00024821,7]
[378120707,1754739054875,-432.795285,0.00024821,7]
[378120709,1754739054884,-2200.0,0.00024839,2]
[378120711,1754739054894,-813.971,0.00024839,2]
[378120713,1754739054904,-2000.0,0.00024856,2]
[378120715,1754739054913,-150.0,0.00024873,2]
[378120717,1754739054922,-500.0,0.00024873,2]
[378120719,1754739054931,-49925.35,0.0002489,7]
[378120721,1754739054944,-151.0,0.0002489,7]
[378120723,1754739054953,-151.0,0.0002489,7]
[378120725,1754739054962,-151.0,0.0002489,7]
[378120727,1754739054972,-708.136517,0.0002489,7]
[378120729,1754739054981,-708.136511,0.0002489,7]
[378120731,1754739054991,-151.0,0.0002489,7]
[378120733,1754739054999,-172.56888,0.0002489,7]
[378120735,1754739055008,-151.0,0.0002489,7]
[378120736,1754739055018,-312.16666667,0.0002489,7]
[378120738,1754739055027,-151.0,0.0002489,7]
[378120740,1754739055036,-151.0,0.0002489,7]
[378120742,1754739055046,-151.0,0.0002489,7]
[378120744,1754739055055,-250.0,0.000249,2]
[378120746,1754739055064,-250.0,0.000249,2]
[378120748,1754739055075,-250.0,0.000249,2]
[378120751,1754739055084,-250.0,0.000249,2]
[378120753,1754739055094,-250.0,0.000249,2]
[378120755,1754739055103,-250.0,0.000249,2]
[378120757,1754739055112,-388.5,0.000249,2]
[378120759,1754739055121,-151.0,0.000249,7]
[378120760,1754739055130,-151.0,0.000249,7]
[378120762,1754739055139,-151.0,0.000249,7]
[378120764,1754739055149,-154.25762,0.000249,7]
[378120766,1754739055159,-151.0,0.000249,7]
[378120768,1754739055169,-151.0,0.000249,7]
[378120770,1754739055179,-151.0,0.000249,7]
[378120772,1754739055188,-151.0,0.000249,7]
[378120774,1754739055197,-151.0,0.000249,7]
[378120776,1754739055206,-153.392718,0.000249,7]
[378120778,1754739055215,-462.217459,0.000249,7]
[378120780,1754739055225,-462.217459,0.000249,7]
[378120782,1754739055234,-462.217459,0.000249,7]
[378120784,1754739055243,-462.217459,0.000249,7]
[378120786,1754739055253,-151.0,0.000249,7]
[378120788,1754739055262,-151.0,0.000249,7]
[378120790,1754739055272,-151.0,0.000249,7]
[378120792,1754739055281,-227.234997,0.000249,7]
[378120794,1754739055290,-151.0,0.000249,7]
[378120796,1754739055300,-151.0,0.000249,7]
[378120798,1754739055309,-151.0,0.000249,7]
[378120800,1754739055318,-151.0,0.000249,7]
[378120802,1754739055328,-151.0,0.000249,7]
[378120804,1754739055338,-151.0,0.000249,7]
[378120806,1754739055347,-231.955218,0.000249,7]
[378120808,1754739055356,-151.0,0.000249,7]
[378120810,1754739055365,-151.0,0.000249,7]
[378120812,1754739055375,-414.49639,0.000249,7]
[378120814,1754739055384,-414.49639,0.000249,7]
[378120816,1754739055393,-151.0,0.000249,7]
[378120818,1754739055402,-151.0,0.000249,7]
[378120820,1754739055412,-574.901304,0.000249,7]
[378120822,1754739055421,-574.901304,0.000249,7]
[378120824,1754739055430,-305.011491,0.000249,7]
[378120826,1754739055440,-305.011491,0.000249,7]
[378120829,1754739055451,-163.977581,0.000249,7]
[378120831,1754739055460,-163.977581,0.000249,7]
[378120832,1754739055468,-151.0,0.000249,7]
[378120834,1754739055477,-207.696716,0.000249,7]
[378120836,1754739055486,-207.696716,0.000249,7]
[378120838,1754739055495,-151.0,0.000249,7]
[378120840,1754739055504,-151.0,0.000249,7]
[378120842,1754739055513,-276.260681,0.000249,7]
[378120844,1754739055522,-276.260681,0.000249,7]
[378120846,1754739055532,-151.0,0.000249,7]
[378120848,1754739055541,-209.174821,0.000249,7]
[378120850,1754739055550,-209.174821,0.000249,7]
[378120852,1754739055559,-432.795285,0.000249,7]
[378120854,1754739055568,-432.795285,0.000249,7]
[378120856,1754739055577,-156.446989,0.000249,7]
[378120858,1754739055587,-156.446989,0.000249,7]
[378120860,1754739055597,-216.660757,0.000249,7]
[378120862,1754739055606,-216.660757,0.000249,7]
[378120864,1754739055616,-151.0,0.000249,7]
[378120867,1754739055626,-151.0,0.000249,7]
[378120869,1754739055635,-151.0,0.000249,7]
[378120871,1754739055645,-39614.2366696,0.000249,2]
[378120873,1754739055654,-160.0,0.000249,7]
[378120875,1754739055663,-151.0,0.000249,7]
[378120877,1754739055673,-151.0,0.000249,7]
[378120879,1754739055682,-450.0,0.0002493,2]
[378120880,1754739055691,-151.0,0.00024931,7]
[378120883,1754739055701,-460.0,0.00024931,2]
[378120884,1754739055710,-460.0,0.00024931,2]
[378120886,1754739055720,-609.92,0.00024931,2]
[378120888,1754739055729,-505.21,0.00024931,2]
[378120890,1754739055738,-460.0,0.00024931,2]
[378120892,1754739055747,-460.0,0.00024931,2]
[378120894,1754739055757,-460.0,0.00024931,2]
[378120897,1754739055767,-460.0,0.00024931,2]
[378120899,1754739055776,-541.27,0.00024931,2]
[378120900,1754739055787,-460.0,0.00024931,2]
[378120903,1754739055796,-554.05,0.00024931,2]
[378120904,1754739055805,-460.0,0.00024931,2]
[378120906,1754739055814,-640.32,0.00024931,2]
[378120907,1754739055823,-717.14,0.00024931,2]
[378120908,1754739055833,-916.75,0.00024931,2]
[378120909,1754739055842,-1805.7,0.00024931,2]
[378120910,1754739055851,-896.16,0.00024931,2]
[378120911,1754739055861,-836.82,0.00024931,2]
[378120912,1754739055870,-467.22,0.00024931,2]
[378120913,1754739055879,-460.0,0.00024931,2]
[378120914,1754739055889,-460.0,0.00024931,2]
[378120915,1754739055898,-514.06,0.00024931,2]
[378120916,1754739055908,-460.0,0.00024931,2]
[378120917,1754739055917,-460.0,0.00024931,2]
[378120918,1754739055926,-1703.91572379,0.00024931,2]
[378120941,1754739056185,-555.24,0.00021652,10]
[378120954,1754739056300,-284.76,0.00023835,2]
[378120966,1754739056397,-4206.49999999,0.00021562,2]
[378120968,1754739056409,-2600.25557855,0.00021562,2]
[378120989,1754739056596,2880.2443516,0.00021534,2]
[378121987,1754739067550,250.0,0.00021501,2]
[378124165,1754739099598,5491.54812418,0.000199,2]
[378124166,1754739099624,974.20864229,0.000199,2]
[378124169,1754739140895,200.52219,0.00020913,2]
[378124172,1754739174694,239.84512346,0.00020915,2]
[378124173,1754739238183,169.41717851,0.00021461,2]
[378124174,1754739238599,169.41717851,0.00021508,2]
[378124175,1754739240198,371.935251,0.00013699,2]
[378124176,1754739240617,371.935251,0.00020187,2]
[378124178,1754739282347,6410.24150964,0.000199,2]
[378124179,1754739337540,169.41717851,0.00021455,2]
[378124180,1754739413976,3423.06049708,0.00021,2]
[378124181,1754739414000,12500.0,0.00021,2]
[378124182,1754739414023,2599.93950292,0.00021,2]
[378124185,1754739460124,9900.06049708,0.00020585,2]
[378124186,1754739460148,99.93950292,0.00020585,2]
[378124187,1754739468822,6796.20808914,0.000199,2]
[378124188,1754739478842,3814.4939868,0.00020561,2]
[378124189,1754739485333,1789.35842114,0.00020749,2]
[378124190,1754739485356,11520.66162606,0.00020749,2]
[378124191,1754739489008,165.701387,0.00020561,2]
[378124192,1754739489208,165.701387,0.00020629,2]
[378124193,1754739489406,165.701387,0.00020698,2]
[378124194,1754739489609,165.701387,0.00020766,2]
[378124195,1754739591528,-167.42049763,0.00021552,2]
[378124196,1754739591549,-1026.86431678,0.00021555,2]
[378124197,1754739591571,-300.0,0.00021559,2]
[378124198,1754739591594,-300.0,0.0002156,2]
[378124199,1754739591616,-300.0,0.0002156,2]
[378124200,1754739591636,-300.0,0.0002156,2]
[378124201,1754739591656,-300.0,0.0002156,2]
[378124202,1754739591677,-1200.0,0.0002156,2]
[378124203,1754739591697,-1804.49140944,0.00021561,2]
[378124204,1754739591925,-500.0,0.00021561,2]
[378124205,1754739591948,-500.0,0.00021561,2]
[378124206,1754739591968,-500.0,0.00021561,2]
[378124207,1754739591990,-489.65640577,0.00021561,2]
[378124208,1754739592015,-174.76468391,0.00021561,2]
[378124209,1754739592035,-500.0,0.00021561,2]
[378124210,1754739592057,-500.0,0.00021561,2]
[378124211,1754739592078,-500.0,0.00021561,2]
[378124212,1754739592106,-500.0,0.00021561,2]
[378124213,1754739592127,-500.0,0.00021561,2]
[378124214,1754739592149,-152.71236892,0.00021561,2]
[378124215,1754739592170,-552.28640521,0.00021561,2]
[378124216,1754739592192,-38395.80391234,0.00021562,2]
[378124217,1754739599081,316.53282594,0.00021551,2]
[378124218,1754739599110,4683.46717406,0.00021551,2]
[378124219,1754739617671,5000.0,0.00021551,2]
[378124220,1754739625705,185.13334541,0.00021461,2]
[378124221,1754739628199,666.0,0.00020734,2]
[378124222,1754739633505,1965.39948053,0.00021551,2]
[378124223,1754739633529,3034.60051947,0.00021551,2]
[378124224,1754739650150,5000.0,0.00021551,2]
[378124225,1754739656597,3882.2937367,0.00020736,2]
[378124226,1754739658494,583.10574383,0.000199,2]
[378124227,1754739658523,6274.22534779,0.000199,2]
[378124228,1754739659281,203.04195854,0.00021452,2]
[378124229,1754739667241,5000.0,0.00021551,2]
[378124230,1754739671663,1022.73269367,0.00021452,2]
[378124231,1754739671685,1496.62927513,0.00021452,2]
[378124232,1754739682689,4486.7321077,0.00021551,2]
[378124233,1754739729834,185.1333454,0.0002146,2]
[378124236,1754739776840,200.30584649,0.00020915,2]
[378124239,1754739804852,6131.19942528,0.00020649,2]
[378124240,1754739804878,12500.0,0.00020649,2]
[378124241,1754739804902,6268.80057472,0.00020649,2]
[378124242,1754739852818,6231.19942528,0.000199,2]
[378124243,1754739852844,354.53370757,0.000199,2]
[378124244,1754739859280,12145.46629243,0.00020649,2]
[378124245,1754739859303,3098.21927267,0.00020649,2]
[378124247,1754739917175,209.4144809,0.00020649,2]
[378124248,1754739924451,159.0,0.00021864,120]
[378124249,1754739926167,159.0,0.0002405,120]
[378124250,1754740017363,5000.0,0.00021551,2]
[378124251,1754740033458,4192.36624643,0.00021551,2]
[378124252,1754740033481,807.63375357,0.00021551,2]
[378124253,1754740034758,7765.12770439,0.000199,2]
[378124254,1754740047945,179.65122183,0.00021452,2]
[378124255,1754740078205,695.68058024,0.00020915,2]
[378124273,1754740174471,330.944257,0.00020649,2]
[378124274,1754740207576,396.211902,0.00013699,2]
[378124275,1754740207831,396.211902,0.00020187,2]
[378124277,1754740223332,1928.53867897,0.000199,2]
[378124278,1754740223363,5820.1676078,0.000199,2]
[378124279,1754740230338,5000.0,0.00021551,2]
[378124336,1754740232831,-300.0,0.00021558,2]
[378124338,1754740232841,-1200.0,0.00021559,2]
[378124340,1754740232850,-300.0,0.00021559,2]
[378124343,1754740232860,-4.49140944,0.00021559,2]
[378124346,1754740232883,-295.50859056,0.00021559,2]
[378124348,1754740232895,-300.0,0.00021559,2]
[378124350,1754740232904,-300.0,0.00021559,2]
[378124352,1754740232914,-858.41343478,0.00021559,2]
[378124459,1754740238575,-462.7,0.00021552,10]
[378124460,1754740238585,-341.58656522,0.00021559,2]
[378124462,1754740238595,-500.0,0.00021561,2]
[378124464,1754740238605,-500.0,0.00021561,2]
[378124466,1754740238615,-500.0,0.00021561,2]
[378124468,1754740238625,-500.0,0.00021561,2]
[378124470,1754740238635,-300.0,0.00021561,2]
[378124472,1754740238644,-347.00836144,0.00021561,2]
[378124475,1754740238655,-500.0,0.00021561,2]
[378124476,1754740238665,-398.38,0.00021561,2]
[378124479,1754740238675,-360.0,0.00021561,2]
[378124481,1754740238685,-500.0,0.00021561,2]
[378124483,1754740238695,-500.0,0.00021561,2]
[378124484,1754740238704,-289.76601394,0.00021561,2]
[378124487,1754740238714,-500.0,0.00021561,2]
[378124489,1754740238724,-500.0,0.00021561,2]
[378124491,1754740238733,-258.39160662,0.00021561,2]
[378124493,1754740238742,-500.0,0.00021561,2]
[378124495,1754740238752,-108692.9737658,0.00021562,2]
[378124497,1754740238762,-7748.70628651,0.00021655,2]
[378124499,1754740238771,-821.49145344,0.000218,2]
[378124501,1754740238781,-280.2132613,0.00021817,2]
[378124503,1754740238790,-821.4914534,0.00021873,2]
[378124505,1754740238800,-34758.47,0.000219,2]
[378124507,1754740238809,-151.0,0.00021904,2]
[378124509,1754740238818,-151.0,0.00021904,2]
[378124511,1754740238827,-151.0,0.00021904,2]
[378124513,1754740238837,-151.0,0.00021904,2]
[378124515,1754740238846,-151.0,0.00021904,2]
[378124517,1754740238855,-151.0,0.00021904,2]
[378124538,1754740239047,-151.0,0.00021904,2]
[378124540,1754740239056,-151.0,0.00021904,2]
[378124542,1754740239066,-151.0,0.00021904,2]
[378124544,1754740239075,-151.0,0.00021904,2]
[378124547,1754740239085,-151.0,0.00021904,2]
[378124548,1754740239095,-151.0,0.00021904,2]
[378124550,1754740239104,-151.0,0.00021904,2]
[378124552,1754740239114,-151.0,0.00021904,2]
[378124554,1754740239124,-308.19927133,0.00021916,2]
[378124557,1754740239134,-500.0,0.00021916,2]
[378124559,1754740239144,-500.0,0.00021916,2]
[378124561,1754740239153,-500.0,0.00021916,2]
[378124563,1754740239163,-517.87884764,0.00021916,2]
[378124565,1754740239172,-500.0,0.00021916,2]
[378124567,1754740239182,-500.0,0.00021916,2]
[378124569,1754740239191,-500.0,0.00021916,2]
[378124571,1754740239201,-500.0,0.00021916,2]
[378124573,1754740239210,-500.0,0.00021916,2]
[378124575,1754740239219,-500.0,0.00021916,2]
[378124577,1754740239228,-486.31188935,0.00021916,2]
[378124579,1754740239240,-13.68811065,0.00021916,2]
[378124581,1754740239249,-500.0,0.00021916,2]
[378124583,1754740239258,-500.0,0.00021916,2]
[378124585,1754740239270,-500.0,0.00021916,2]
[378124587,1754740239281,-500.0,0.00021916,2]
[378124589,1754740239290,-500.0,0.00021916,2]
[378124591,1754740239300,-500.0,0.00021916,2]
[378124592,1754740239309,-500.0,0.00021916,2]
[378124593,1754740239319,-500.0,0.00021916,2]
[378124594,1754740239328,-500.0,0.00021916,2]
[378124595,1754740239338,-375.05064449,0.00021916,2]
[378124596,1754740239349,-500.0,0.00021916,2]
[378124597,1754740239359,-500.0,0.00021916,2]
[378124598,1754740239368,-500.0,0.00021916,2]
[378124599,1754740239377,-500.0,0.00021916,2]
[378124600,1754740239387,-500.0,0.00021916,2]
[378124601,1754740239396,-600.0,0.00021916,2]
[378124602,1754740239406,-600.0,0.00021916,2]
[378124603,1754740239416,-600.0,0.00021916,2]
[378124604,1754740239425,-460.0,0.00021917,2]
[378124605,1754740239436,-460.0,0.00021917,2]
[378124606,1754740239445,-460.0,0.00021917,2]
[378124607,1754740239454,-460.0,0.00021917,2]
[378124608,1754740239464,-460.0,0.00021917,2]
[378124609,1754740239473,-460.0,0.00021917,2]
[378124610,1754740239482,-462.47651238,0.00021917,2]
[378124611,1754740239492,-460.0,0.00021917,2]
[378124612,1754740239501,-460.0,0.00021917,2]
[378124613,1754740239511,-460.0,0.00021917,2]
[378124614,1754740239520,-322.44429348,0.00021917,2]
[378124615,1754740239529,-460.0,0.00021917,2]
[378124617,1754740239538,-460.0,0.00021917,2]
[378124619,1754740239547,-479.62709873,0.00021917,2]
[378124621,1754740239556,-460.70187345,0.00021917,2]
[378124623,1754740239565,-543.40068096,0.00021917,2]
[378124625,1754740239575,-460.0,0.00021917,2]
[378124627,1754740239584,-460.0,0.00021917,2]
[378124629,1754740239594,-460.0,0.00021917,2]
[378124631,1754740239604,-460.0,0.00021917,2]
[378124633,1754740239613,-460.0,0.00021917,2]
[378124635,1754740239623,-460.0,0.00021917,2]
[378124637,1754740239632,-462.76651066,0.00021917,2]
[378124639,1754740239641,-460.0,0.00021917,2]
[378124641,1754740239651,-460.0,0.00021917,2]
[378124643,1754740239660,-460.0,0.00021917,2]
[378124645,1754740239669,-315.93738094,0.00021917,2]
[378124647,1754740239679,-460.0,0.00021917,2]
[378124649,1754740239688,-462.10113837,0.00021917,2]
[378124651,1754740239698,-460.0,0.00021917,2]
[378124653,1754740239707,-460.0,0.00021917,2]
[378124656,1754740239718,-460.0,0.00021917,2]
[378124658,1754740239727,-485.25,0.00021917,2]
[378124659,1754740239736,-460.0,0.00021917,2]
[378124661,1754740239745,-460.0,0.00021917,2]
[378124663,1754740239754,-460.0,0.00021917,2]
[378124666,1754740239763,-460.0,0.00021917,2]
[378124667,1754740239773,-460.0,0.00021917,2]
[378124669,1754740239783,-460.0,0.00021917,2]
[378124672,1754740239792,-460.0,0.00021917,2]
[378124674,1754740239802,-460.0,0.00021917,2]
[378124676,1754740239811,-460.0,0.00021917,2]
[378124678,1754740239820,-460.0,0.00021917,2]
[378124680,1754740239829,-460.0,0.00021917,2]
[378124682,1754740239839,-460.0,0.00021917,2]
[378124684,1754740239849,-460.0,0.00021917,2]
[378124686,1754740239858,-473.85113056,0.00021917,2]
[378124688,1754740239867,-460.0,0.00021917,2]
[378124690,1754740239877,-460.0,0.00021917,2]
[378124692,1754740239886,-460.0,0.00021917,2]
[378124694,1754740239896,-460.0,0.00021917,2]
[378124696,1754740239906,-460.0,0.00021917,2]
[378124697,1754740239915,-857.71,0.00021917,2]
[378124699,1754740239925,-460.0,0.00021917,2]
[378124701,1754740239934,-460.0,0.00021917,2]
[378124703,1754740239943,-461.78173854,0.00021917,2]
[378124705,1754740239952,-238.57147051,0.00021917,2]
[378124707,1754740239961,-194.08769897,0.00021917,2]
[378124709,1754740239970,-460.0,0.00021917,2]
[378124711,1754740239979,-460.0,0.00021917,2]
[378124714,1754740239989,-636.42,0.00021917,2]
[378124716,1754740239998,-460.0,0.00021917,2]
[378124718,1754740240008,-460.0,0.00021917,2]
[378124720,1754740240017,-460.0,0.00021917,2]
[378124722,1754740240027,-460.0,0.00021917,2]
[378124726,1754740240037,-608.79991948,0.00021917,2]
[378124728,1754740240047,-460.55102247,0.00021917,2]
[378124730,1754740240056,-460.0,0.00021917,2]
[378124732,1754740240066,-460.0,0.00021917,2]
[378124733,1754740240076,-550.99,0.00021917,2]
[378124736,1754740240086,-529.11114874,0.00021917,2]
[378124738,1754740240097,-257.06762528,0.00021917,2]
[378124739,1754740240107,-460.0,0.00021917,2]
[378124742,1754740240116,-460.0,0.00021917,2]
[378124744,1754740240126,-460.44315175,0.00021917,2]
[378124746,1754740240135,-460.0,0.00021917,2]
[378124748,1754740240144,-460.0,0.00021917,2]
[378124751,1754740240154,-460.0,0.00021917,2]
[378124753,1754740240163,-460.0,0.00021917,2]
[378124755,1754740240173,-460.0,0.00021917,2]
[378124757,1754740240182,-597.85,0.00021917,2]
[378124759,1754740240191,-460.0,0.00021917,2]
[378124761,1754740240201,-460.0,0.00021917,2]
[378124763,1754740240210,-460.0,0.00021917,2]
[378124765,1754740240220,-460.0,0.00021917,2]
[378124767,1754740240230,-460.0,0.00021917,2]
[378124769,1754740240239,-460.0,0.00021917,2]
[378124772,1754740240248,-460.0,0.00021917,2]
[378124774,1754740240257,-576.67242267,0.00021917,2]
[378124775,1754740240267,-460.0,0.00021917,2]
[378124777,1754740240278,-460.0,0.00021917,2]
[378124780,1754740240287,-460.0,0.00021917,2]
[378124781,1754740240297,-460.0,0.00021917,2]
[378124783,1754740240306,-460.0,0.00021917,2]
[378124785,1754740240318,-460.0,0.00021917,2]
[378124787,1754740240328,-465.05510185,0.00021917,2]
[378124789,1754740240338,-460.0,0.00021917,2]
[378124791,1754740240350,-466.98402564,0.00021917,2]
[378124793,1754740240360,-460.0,0.00021917,2]
[378124795,1754740240369,-462.27760187,0.00021917,2]
[378124797,1754740240379,-460.0,0.00021917,2]
[378124799,1754740240388,-461.25887892,0.00021917,2]
[378124801,1754740240398,-460.0,0.00021917,2]
[378124803,1754740240407,-460.0,0.00021917,2]
[378124806,1754740240417,-460.0,0.00021917,2]
[378124808,1754740240427,-460.0,0.00021917,2]
[378124809,1754740240436,-460.0,0.00021917,2]
[378124811,1754740240445,-460.0,0.00021917,2]
[378124813,1754740240454,-471.04665608,0.00021917,2]
[378124816,1754740240464,-460.0,0.00021917,2]
[378124818,1754740240473,-460.0,0.00021917,2]
[378124820,1754740240482,-460.0,0.00021917,2]
[378124821,1754740240491,-460.0,0.00021917,2]
[378124823,1754740240500,-460.0,0.00021917,2]
[378124825,1754740240510,-460.0,0.00021917,2]
[378124827,1754740240520,-460.0,0.00021917,2]
[378124829,1754740240529,-460.0,0.00021917,2]
[378124831,1754740240539,-303.1463883,0.00021917,2]
[378124833,1754740240548,-460.0,0.00021917,2]
[378124836,1754740240557,-460.0,0.00021917,2]
[378124838,1754740240567,-463.55455404,0.00021917,2]
[378124840,1754740240576,-460.0,0.00021917,2]
[378124841,1754740240585,-460.0,0.00021917,2]
[378124844,1754740240595,-460.0,0.00021917,2]
[378124845,1754740240604,-460.0,0.00021917,2]
[378124847,1754740240613,-460.0,0.00021917,2]
[378124849,1754740240622,-504.05202461,0.00021917,2]
[378124852,1754740240632,-460.0,0.00021917,2]
[378124853,1754740240642,-460.0,0.00021917,2]
[378124855,1754740240651,-500.0,0.00021917,2]
[378124857,1754740240660,-500.0,0.00021917,2]
[378124859,1754740240669,-500.0,0.00021917,2]
[378124861,1754740240679,-460.0,0.00021917,2]
[378124863,1754740240688,-500.0,0.00021917,2]
[378124865,1754740240697,-500.0,0.00021917,2]
[378124868,1754740240706,-500.0,0.00021917,2]
[378124869,1754740240716,-208.51430154,0.00021917,2]
[378124871,1754740240725,-460.0,0.00021917,2]
[378124873,1754740240734,-464.91805229,0.00021917,2]
[378124875,1754740240743,-460.0,0.00021917,2]
[378124877,1754740240753,-599.99174417,0.00021917,2]
[378124879,1754740240762,-460.0,0.00021917,2]
[378124881,1754740240772,-396.65568362,0.00021917,2]
[378124883,1754740240781,-462.56515786,0.00021917,2]
[378124885,1754740240791,-460.0,0.00021917,2]
[378124887,1754740240800,-460.0,0.00021917,2]
[378124890,1754740240809,-460.0,0.00021917,2]
[378124892,1754740240819,-460.0,0.00021917,2]
[378124894,1754740240829,-460.0,0.00021917,2]
[378124896,1754740240838,-460.0,0.00021917,2]
[378124898,1754740240847,-460.0,0.00021917,2]
[378124900,1754740240856,-460.0,0.00021917,2]
[378124902,1754740240865,-460.0,0.00021917,2]
[378124904,1754740240874,-460.0,0.00021917,2]
[378124906,1754740240883,-356.56440655,0.00021917,2]
[378124908,1754740240892,-593.9,0.00021917,2]
[378124910,1754740240902,-464.38463811,0.00021917,2]
[378124912,1754740240911,-460.0,0.00021917,2]
[378124914,1754740240921,-538.65,0.00021917,2]
[378124916,1754740240931,-460.0,0.00021917,2]
[378124918,1754740240941,-480.26,0.00021917,2]
[378124920,1754740240950,-460.0,0.00021917,2]
[378124922,1754740240960,-462.62062111,0.00021917,2]
[378124924,1754740240969,-460.0,0.00021917,2]
[378124926,1754740240978,-460.0,0.00021917,2]
[378124928,1754740240987,-460.0,0.00021917,2]
[378124930,1754740240996,-460.0,0.00021917,2]
[378124932,1754740241006,-460.0,0.00021917,2]
[378124934,1754740241015,-460.0,0.00021917,2]
[378124936,1754740241025,-460.0,0.00021917,2]
[378124938,1754740241034,-460.07758548,0.00021917,2]